Cogmind - Beta 10.2 @@@ ROGUE MODE // 2021.11.27 @ 11:03:36 Player: BigP Result: Self-destructed Performance ------------- Evolutions (2) 1000 Regions Visited (5) 1000 Robots Destroyed (50) 250 Value Destroyed (1187) 1187 Prototype IDs (3) 60 Alien Tech Used (0) 0 Bonus (200) 200 TOTAL SCORE: 3697 Bonus ------- Pacifist 200 Cogmind --------- Core Integrity 505/550 Matter 59/300 Energy 100/100 System Corruption 0% Temperature Cool (0) Movement Treading (160) Location -8/Materials Parts ------- > --- POWER (1) -------- (None) > --- PROPULSION (2) --- Light Treads Light Treads > --- UTILITY (6) ------ Thermal Generator Improved Heat Sink Improved Heat Sink Large Storage Unit Improved Propulsion Shielding > --- WEAPON (2) ------- Small Laser Scatter Rocket Array > --- INVENTORY (10) --- Light Treads Light Treads Weapon Shielding Small Laser Small Laser Improved Light Cannon Peak State ------------ > --- POWER ------------ Light Ion Engine > --- PROPULSION ------- Light Treads Light Treads > --- UTILITY ---------- Thermal Generator Improved Heat Sink Improved Heat Sink Large Storage Unit Improved Propulsion Shielding Weapon Shielding > --- WEAPON ----------- Small Laser Scatter Rocket Array > --- INVENTORY -------- Light Treads Light Treads Weapon Shielding Small Laser Small Laser Small Laser Improved Light Cannon [Rating: 24] Favorites ----------- Power Light Ion Engine Engine Light Ion Engine Propulsion Light Treads Treads Light Treads Utility Improved Propulsion Shielding Device Improved Heat Sink Storage Large Storage Unit Processor Signal Interpreter Protection Improved Propulsion Shielding Weapon Scatter Rocket Array Energy Gun Particle Gun Ballistic Gun Assault Rifle Ballistic Cannon Improved Light Cannon Launcher Scatter Rocket Array Build | -11 -10 -10 -9 -9 -8 ------- Run | Scr Mat Min Mat Sto Mat Slots Evolved 4 | . . . 2 . 2 Power . | . . . . . . Propulsion . | . . . . . . Utility 4 | . . . 2 . 2 Weapon . | . . . . . . Parts Attached 35 | 6 1 . 5 20 3 Power 2 | 1 . . . 1 . Engine 2 | 1 . . . 1 . Core . | . . . . . . Reactor . | . . . . . . Propulsion 6 | 2 . . . 4 . Treads 6 | 2 . . . 4 . Leg . | . . . . . . Wheel . | . . . . . . Hover . | . . . . . . Flight . | . . . . . . Utility 13 | 1 . . 4 6 2 Device 3 | . . . . 1 2 Storage 3 | 1 . . 1 1 . Processor 1 | . . . 1 . . Hackware . | . . . . . . Protection 6 | . . . 2 4 . Artifact . | . . . . . . Weapon 14 | 2 1 . 1 9 1 Energy Gun 9 | 1 . . 1 6 1 Energy Cannon . | . . . . . . Ballistic Gun 1 | 1 . . . . . Ballistic Cannon 1 | . . . . 1 . Launcher 3 | . 1 . . 2 . Special Weapon . | . . . . . . Impact Weapon . | . . . . . . Slashing Weapon . | . . . . . . Piercing Weapon . | . . . . . . Special Melee Weapon . | . . . . . . Unidentified Prototypes 1 | . . . . 1 . Parts Lost 9 | . . . . 6 3 Power 2 | . . . . 1 1 Propulsion . | . . . . . . Utility 2 | . . . . 1 1 Weapon 5 | . . . . 4 1 Highest Loss Streak 4 | . . . . 4 2 Average Slot Usage (%) 95 | . 85 85 89 97 87 Engine 10 | . 14 14 11 10 . Treads 22 | . 28 28 22 21 18 Device 9 | . . . . 10 27 Storage 11 | . 14 14 11 11 9 Processor 1 | . . . 9 . . Protection 18 | . . . 13 20 18 Energy Gun 9 | . 2 . 8 9 6 Ballistic Cannon 1 | . . . . 1 . Launcher 9 | . 12 14 11 9 9 Naked Turns . | . . . . . . Heaviest Build 37 | 11 12 12 22 35 37 Greatest Support 40 | 40 40 40 40 40 40 Greatest Overweight (x) 6 | . . . . 6 . Average Overweight (x) . | . . . . . . Largest Inventory Capacity 10 | 6 6 6 8 10 10 Average Capacity 9 | 5 6 6 6 9 10 Most Carried 10 | 4 1 1 6 10 8 Average Carried 6 | . . 1 4 7 6 Final Capacity 10 | 6 6 6 8 10 10 Final Carried 9 | . 1 1 6 9 6 Class Distribution -------------------- 96% | Mutant 3% | Scavenger-Mutant Dominant Class ---------------- Mutant | -10/Materials Mutant | -10/Mines Mutant | -9/Materials Mutant | -9/Storage Mutant | -8/Materials Resources | -11 -10 -10 -9 -9 -8 ----------- Run | Scr Mat Min Mat Sto Mat Matter Collected 1134 | 208 . . 93 809 24 Remotely . | . . . . . . Salvage Created 1512 | . . . 134 1274 104 Parts 108 | . . . 8 84 16 Haulers Intercepted 4 | . . . 1 3 . Recyclers Shooed 3 | . . . . 3 . Parts Field Recycled . | . . . . . . Retrieved Matter . | . . . . . . Parts Self-Destructed . | . . . . . . Prevented . | . . . . . . Kills | -11 -10 -10 -9 -9 -8 ------- Run | Scr Mat Min Mat Sto Mat Combat Hostiles Destroyed 29 | . . . 3 20 6 Guns 6 | . . . . 5 1 AOE 23 | . . . 3 15 5 Classes Destroyed 11 | . . . 4 7 . Worker 2 | . . . . 2 . Builder 5 | . . . 1 3 1 Hauler 4 | . . . 1 3 . Recycler 7 | . . . . 7 . Operator 2 | . . . . 1 1 Watcher 1 | . . . . 1 . Swarmer 6 | . . . . 4 2 Grunt 13 | . . . 2 8 3 Brawler 1 | . . . . 1 . Duelist 1 | . . . . 1 . Sentry 8 | . . . 1 6 1 Best Kill Streak 7 | . . . 2 6 7 Combat Bots Only 5 | . . . 2 5 5 Max Kills in Single Turn 5 | . . . 1 5 2 Gunslinging . | . . . . . . Exploded 5 | . . . 1 5 2 Melee . | . . . . . . Uniques/NPCs Destroyed . | . . . . . . Combat | -11 -10 -10 -9 -9 -8 -------- Run | Scr Mat Min Mat Sto Mat Damage Taken 1392 | . . . 129 808 455 Core 256 | . . . 12 199 45 Absorbed by Shields . | . . . . . . Core Remaining (%) 82 | 100 . 100 . 47 . Volleys Fired 88 | . 1 . 15 60 12 Largest 2 | . 1 . 1 2 1 Hottest 130 | . 30 . 65 130 50 Shots Fired 98 | . 1 . 15 70 12 Gun 68 | . . . 7 54 7 Cannon . | . . . . . . Launcher 30 | . 1 . 8 16 5 Special . | . . . . . . Kinetic . | . . . . . . Thermal 57 | . . . 7 43 7 Explosive 30 | . 1 . 8 16 5 Electromagnetic 11 | . . . . 11 . Robot Hit Streak 18 | . 1 . 7 18 5 Robot Miss Streak 10 | . . . 1 8 10 Penetration Max . | . . . . . . Secondary Targets . | . . . . . . Shots Hit Robots 64 | . 1 . 10 47 6 Core Hits 101 | . . . 10 65 26 Critical Hits . | . . . . . . Critical Kills . | . . . . . . Critical Parts Destroyed . | . . . . . . Melee Attacks . | . . . . . . Impact . | . . . . . . Slashing . | . . . . . . Piercing . | . . . . . . Sneak Attacks . | . . . . . . Combat Hostiles . | . . . . . . Follow-up Attacks . | . . . . . . Damage Inflicted 3224 | . 47 . 402 2001 774 Guns 750 | . . . 110 595 45 Cannons . | . . . . . . Explosions 2474 | . 47 . 292 1406 729 Melee . | . . . . . . Ramming . | . . . . . . Kinetic . | . . . . . . Thermal 662 | . . . 110 507 45 Explosive 2454 | . 47 . 292 1386 729 Electromagnetic 108 | . . . . 108 . Impact . | . . . . . . Slashing . | . . . . . . Piercing . | . . . . . . Highest Corruption . | . . . . . . Average Corruption . | . . . . . . Corruption Purged . | . . . . . . Overload Shots . | . . . . . . Overflow Damage 52 | . 7 . . 9 36 Projectiles . | . . . . . . Explosions 52 | . 7 . . 9 36 Melee . | . . . . . . Knockbacks . | . . . . . . Impact . | . . . . . . Kinetic . | . . . . . . Secondary . | . . . . . . Self-Inflicted Damage 340 | . . . 18 191 131 Shots 14 | . . . 1 6 7 Rammed . | . . . . . . Targets Rammed . | . . . . . . Kicked . | . . . . . . Crushed . | . . . . . . Highest Temperature 144 | . . . 144 139 . Average Temperature 46 | . . . 50 44 . Received Heat Transfer 396 | . . . 54 252 90 Siege Activations . | . . . . . . Robots Corrupted . | . . . . . . Combat Hostiles . | . . . . . . Parts Fried . | . . . . . . Impact Corruptions . | . . . . . . Robots Melted . | . . . . . . Combat Hostiles . | . . . . . . Parts Melted 1 | . . . . 1 . Heat Transferred 1630 | . . . 259 1271 100 Parts Sabotaged . | . . . . . . Parts Stolen . | . . . . . . Parts Stripped . | . . . . . . Power Chain Reactions 1 | . . . . 1 . Missiles Intercepted . | . . . . . . Alert | -11 -10 -10 -9 -9 -8 ------- Run | Scr Mat Min Mat Sto Mat Peak Influence 362 | . . . 107 362 237 Initial 69 | . . . . 44 69 Average 175 | . . . 41 203 179 Maximum Alert Level 1 | . . . . 1 1 Low Security (%) 66 | 100 100 100 100 60 50 Level 1 33 | . . . . 39 49 Level 2 . | . . . . . . Level 3 . | . . . . . . Level 4 . | . . . . . . Level 5 . | . . . . . . High Security . | . . . . . . Max Security . | . . . . . . Squads Dispatched 7 | . . . 2 1 4 Investigation . | . . . . . . Extermination . | . . . . . . Reinforcement 4 | . . . 2 1 1 Assault . | . . . . . . Garrison 3 | . . . . . 3 Intercept . | . . . . . . Construction Impeded . | . . . . . . Haulers Reinforced . | . . . . . . Stealth | -11 -10 -10 -9 -9 -8 --------- Run | Scr Mat Min Mat Sto Mat Distress Signals . | . . . . . . Communications Jammed . | . . . . . . Distress Signals . | . . . . . . Times Spotted 39 | . 1 . 6 23 9 Peak Tracking Total 6 | . 1 . 3 6 4 Tactical Retreats . | . . . . . . Traps | -11 -10 -10 -9 -9 -8 ------- Run | Scr Mat Min Mat Sto Mat Traps Triggered 2 | . . . . 2 . Indirectly . | . . . . . . Trap Hack Attempts . | . . . . . . Triggered . | . . . . . . Disarmed . | . . . . . . Reprogrammed . | . . . . . . Reused . | . . . . . . Traps Extracted . | . . . . . . Installed . | . . . . . . Triggered . | . . . . . . Machines | -11 -10 -10 -9 -9 -8 ---------- Run | Scr Mat Min Mat Sto Mat Machines Disabled 7 | . . . . 7 . Max in Single Turn 1 | . . . . 1 . Machines Sabotaged . | . . . . . . Garrisons Compromised . | . . . . . . Overloaded Fab Kills . | . . . . . . Fab Network Shutdowns . | . . . . . . Hacking | -11 -10 -10 -9 -9 -8 --------- Run | Scr Mat Min Mat Sto Mat Machines Accessed 5 | . . . 1 4 . Terminals 4 | . . . 1 3 . Fabricators . | . . . . . . Repair Stations . | . . . . . . Recycling Units 1 | . . . . 1 . Scanalyzers . | . . . . . . Garrison Access . | . . . . . . Total Hacks 11 | . . . 1 10 . Successful 8 | . . . 1 7 . Failed 3 | . . . . 3 . Catastrophic . | . . . . . . Database Lockouts . | . . . . . . Manual . | . . . . . . Terminals 10 | . . . 1 9 . Fabricators . | . . . . . . Repair Stations . | . . . . . . Recycling Units 1 | . . . . 1 . Scanalyzers . | . . . . . . Garrison Access . | . . . . . . Terminal Hacks 7 | . . . 1 6 . Record 1 | . . . . 1 . Part Schematic 1 | . . . . 1 . Prototype ID Bank 1 | . . . . 1 . Open Door 1 | . . . . 1 . Alert Level 1 | . . . 1 . . Registered Components 1 | . . . . 1 . Zone Layout 1 | . . . . 1 . Fabricator Hacks . | . . . . . . Repair Station Hacks . | . . . . . . Recycling Unit Hacks 1 | . . . . 1 . Report Inventory 1 | . . . . 1 . Scanalyzer . | . . . . . . Garrison Access Hacks . | . . . . . . Unauthorized Hacks . | . . . . . . Terminals . | . . . . . . Fabricators . | . . . . . . Repair Stations . | . . . . . . Recycling Units . | . . . . . . Scanalyzers . | . . . . . . Garrison Access . | . . . . . . Data Cores Recovered . | . . . . . . Used . | . . . . . . Hacking Detections 3 | . . . 1 2 . Full Trace Events . | . . . . . . Feedback Events . | . . . . . . Feedback Blocked . | . . . . . . Robot Schematics Acquired . | . . . . . . Robots Built . | . . . . . . Matter . | . . . . . . Time . | . . . . . . Total Robot Build Rating . | . . . . . . Part Schematics Acquired 1 | . . . . 1 . Parts Built . | . . . . . . Matter . | . . . . . . Time . | . . . . . . Total Part Build Rating . | . . . . . . Parts Repaired . | . . . . . . Time . | . . . . . . Parts Recycled . | . . . . . . Recycled Matter . | . . . . . . Retrieved Matter . | . . . . . . Retrieved Components . | . . . . . . Parts Scanalyzed . | . . . . . . Part Schematics Acquired . | . . . . . . Parts Damaged . | . . . . . . Bothacking | -11 -10 -10 -9 -9 -8 ------------ Run | Scr Mat Min Mat Sto Mat Used RIF Installer . | . . . . . . Robots Hacked . | . . . . . . Non-combat . | . . . . . . Combat . | . . . . . . Robot Hacks Applied . | . . . . . . Relay Couplers Released . | . . . . . . Robots Rewired . | . . . . . . Allies Hacked . | . . . . . . Hacks Repelled . | . . . . . . Allies | -11 -10 -10 -9 -9 -8 -------- Run | Scr Mat Min Mat Sto Mat Total Allies . | . . . . . . Largest Group . | . . . . . . Highest-Rated Group . | . . . . . . Highest-Rated Ally . | . . . . . . Total Orders . | . . . . . . Ally Attacks . | . . . . . . Total Damage . | . . . . . . Kills . | . . . . . . Allies Corrupted . | . . . . . . Allies Melted . | . . . . . . Intel | -11 -10 -10 -9 -9 -8 ------- Run | Scr Mat Min Mat Sto Mat Robot Analysis Total . | . . . . . . Derelict Logs Recovered . | . . . . . . Drone Launches . | . . . . . . Drone Recoveries . | . . . . . . Exploration | -11 -10 -10 -9 -9 -8 ------------- Run | Scr Mat Min Mat Sto Mat Turns Passed 3090 | 65 71 92 249 2552 61 Spaces Moved 1081 | 52 42 57 127 787 16 Core 28 | 26 . . . 2 . Treads 1053 | 26 42 57 127 785 16 Legs . | . . . . . . Wheels . | . . . . . . Hover . | . . . . . . Flight . | . . . . . . Fastest Speed 50 | 50 160 160 160 160 160 Average Speed 157 | 105 160 160 160 160 160 Slowest Speed 350 | 160 160 160 160 350 160 Overloaded Moves . | . . . . . . Propulsion Burnouts . | . . . . . . Robots Hopped . | . . . . . . Cave-ins Triggered . | . . . . . . Exploration Rate (%) 19 | 4 13 18 13 60 6 Regions Visited 5 Branch Regions 2 Pre-discovered Areas . | . . . . . . Known Exits Taken 1 | . . . 1 . . Unknown Exits Taken 4 | 1 1 1 . 1 . Scrap Searched . | . . . . . . Spaces Dug 57 | . . . . 57 . Terrain Destroyed 442 | . 6 . 35 351 50 Melee . | . . . . . . Projectile . | . . . . . . AOE 442 | . 6 . 35 351 50 Terrain Rammed . | . . . . . . Walls Destroyed . | . . . . . . Machines Disabled . | . . . . . . Actions | -11 -10 -10 -9 -9 -8 --------- Run | Scr Mat Min Mat Sto Mat Total 2351 | 63 44 58 159 1996 31 Wait 1092 | . . 2 . 1090 . Move 1076 | 51 41 56 126 786 16 Hop . | . . . . . . Pick Up 43 | 6 1 . 10 26 . Fast Attach 2 | . . . . 2 . Attach 23 | 6 . . 3 11 3 Detach . | . . . . . . Swap 10 | . 1 . 2 7 . Drop 17 | . . . 3 14 . Fire 88 | . 1 . 15 60 12 Melee . | . . . . . . Ram . | . . . . . . Kick . | . . . . . . Crush . | . . . . . . Escape Stasis . | . . . . . . Rewire . | . . . . . . Trap . | . . . . . . Miscellaneous . | . . . . . . Route ------- -11/Scrapyard -10/Materials -10/Mines -9/Materials -9/Storage -8/Materials History --------- Turn | Location | Event 6 | -11/Scrapyard | Discovered new exit (range 14) 66 | -11/Scrapyard | Entered Materials 120 | -10/Materials | Discovered new exit (range 9) 137 | -10/Materials | Entered Mines 143 | -10/Mines | Met a Derelict bent on vengeance 215 | -10/Mines | Discovered new exit (range 10) 229 | -10/Mines | Entered Materials 229 | -9/Materials | Evolved 2 slots: Utility x2 301 | -9/Materials | Build established: Mutant 452 | -9/Materials | Discovered new exit (range 9) 476 | -9/Materials | Identified exit to Storage 478 | -9/Materials | Entered Storage 762 | -9/Storage | Lost 4 parts (1p1u2w) 908 | -9/Storage | Found Prototype Launcher 908 | -9/Storage | Identified Scatter Rocket Array 2333 | -9/Storage | Core integrity fell below 50% 2334 | -9/Storage | Discovered new exit (range 16) 3030 | -9/Storage | Entered Materials 3030 | -8/Materials | Evolved 2 slots: Utility x2 3091 | -8/Materials | Self-destructed Last Messages --------------- 03054_ The unstable cave ceiling collapses. 03054_ U-05 Engineer lays Concrete. 03059_ Y-45 Defender emerges from the garrison. 03059_ U-05 Engineer lays Concrete. 03059_ K-01 Serf collects debris. 03060_ The unstable cave ceiling collapses. 03060_ Lgt. Assault Rifle crushed. 03060_ U-05 Engineer lays Concrete. 03061_ O-24 Administrator destroyed. 03061_ U-05 Engineer destroyed. 03065_ Acquired 13 matter. 03066_ U-05 Engineer lays Concrete. 03067_ K-01 Serf collects debris. 03068_ U-05 Engineer lays Concrete. 03071_ The unstable cave ceiling collapses. 03071_ U-05 Engineer builds a Wall. 03075_ U-05 Engineer lays Concrete. 03085_ S-10 Pest destroyed. 03087_ Acquired 11 matter. 03090_ Weapon Shielding destroyed. Map ----- +----------------------------------------------------+ | | | | | ?????????????????????????????????????????????????? | | ?????????????????????????????????????????????????? | | ?????????????????????????????????????????????????? | | ?????????????????????????????????????????????????? | | ?????????????????????????????????????????????????? | | ?????????????????????????????????????????????????? | | ????????? ??????????????????????????????????????? | | ???????? ?????? ????????????????????????????? | | ???????? ???? ????????????????????????????? | | ??????? ???# ####????????????????????????? | | ??????? #??# #????????????????????????? | | ??????? = ### ?????????????????????????? | | ?????? # # ?????????????????????????? | | ?????? # ?????????????????????????? | | ?????????""" # # ##????????????????????????? | | ?????????""" ?????????????????????????? | | ?????????""" [ ?????????????????????????? | | ?????? """ " " ##?????????????????????????? | | ????? "G" #########?????????????????? | | ????? " #?????????????????? | | ????? #""" #?????????????????? | | ????? !#""" #?????????????????? | | ?????? ## ##""T""# * #"""Y #?????????????????? | | ????????????#"""""# s [@* #?????????????????? | | ????????????####### #""" #?????????????????? | | ??????????????????# #""" #?????????????????? | | ??????????????????# #""" #?????????????????? | | ??????????????????# # #?????????????????? | | ??????????????????# #####+####?????????????????? | | ?????????????????? #??????????????????????????? | | ????????????????? #??????????????????????????? | | ????????????????! ??????????????????????????? | | ????????????????! ??????????????????????????? | | ???????????????[[ ??????????????????????????? | | ??????????????#[[ #??????????????????????????? | | ??????????????##### ???????????????????????????? | | ??????????????????# ???????????????????????????? | | ??????????????????? ???????????????????????????? | | ?????????????????????????????????????????????????? | | ?????????????????????????????????????????????????? | | ?????????????????????????????????????????????????? | | ?????????????????????????????????????????????????? | | ?????????????????????????????????????????????????? | | ?????????????????????????????????????????????????? | | ?????????????????????????????????????????????????? | | ?????????????????????????????????????????????????? | | ?????????????????????????????????????????????????? | | ?????????????????????????????????????????????????? | +----------------------------------------------------+ Best States ------------- Heat Dissipation 59 Energy Generation 10 Energy Capacity 125 Matter Stores 300 Matter Capacity 300 Sight Range 16 Terrain Scan Density 10 Armor Coverage 225 Propulsion Shielding 66 Weapon Shielding 33 Evasion (%) 50 Recoil Reduction 2 Item Schematics ----------------- Core Analyzer | -9/Storage | Hacked Robot Schematics ------------------ None Fabricated ------------ Nothing Alien Tech Used ----------------- None Achievements -------------- Remodeling Challenges ------------ None Game ------ Seed MolecularBladeRay Manual? 0 Play Time 00:28:21 Cumulative 7.1 hours Start 2021.11.27 @ 10:36:14 End 2021.11.27 @ 11:03:36 Sessions 1 Manual Loads 0 Difficulty Rogue Special Mode None Game No. 13 Rogue 13 Adventurer 0 Explorer 0 Win Type - Total 0 Types 0/0/0/0/0/0/0/0/0 Lore% 6 Gallery% 12 Achievement% 11 Wizard Run 0 Options --------- ASCII 0 Keyboard 0 Movement Mouse Keybinds 0 Fullscreen 2 Font 24/Smallcaps Map View 76x50 Tactical HUD 1 Map Filters NONE Filters NONE Steam 1 RUN: eea09b4f-11e6-40b2-b145-4b515e5c78d7